fUSD/lending_fUSD_20250104
["ID","MTS","AMOUNT","RATE_DAILY","PERIOD"]
[347659936,1736031034365,-500.0,9.999e-05,2]
[347659937,1736031034375,-500.0,9.999e-05,2]
[347659938,1736031034384,-500.0,9.999e-05,2]
[347659939,1736031034394,-792.89,9.999e-05,2]
[347659940,1736031034403,-500.0,9.999e-05,2]
[347659941,1736031034414,-500.0,9.999e-05,2]
[347659942,1736031034423,-500.0,9.999e-05,2]
[347659943,1736031034432,-500.0,9.999e-05,2]
[347659944,1736031034442,-500.0,9.999e-05,2]
[347659945,1736031034452,-500.0,9.999e-05,2]
[347659946,1736031034461,-500.0,9.999e-05,2]
[347659947,1736031034471,-500.0,9.999e-05,2]
[347659948,1736031034480,-500.0,9.999e-05,2]
[347659949,1736031034489,-500.0,9.999e-05,2]
[347659950,1736031034499,-500.0,9.999e-05,2]
[347659951,1736031034508,-500.0,9.999e-05,2]
[347659952,1736031034518,-500.0,9.999e-05,2]
[347659953,1736031034528,-500.0,9.999e-05,2]
[347659954,1736031034537,-500.0,9.999e-05,2]
[347659955,1736031034546,-500.0,9.999e-05,2]
[347659956,1736031034555,-500.0,9.999e-05,2]
[347659957,1736031034564,-500.0,9.999e-05,2]
[347659958,1736031034573,-500.0,9.999e-05,2]
[347659959,1736031034583,-500.0,9.999e-05,2]
[347659960,1736031034592,-500.0,9.999e-05,2]
[347659961,1736031034601,-500.0,9.999e-05,2]
[347659962,1736031034611,-500.0,9.999e-05,2]
[347659963,1736031034620,-500.0,9.999e-05,2]
[347659964,1736031034629,-500.0,9.999e-05,2]
[347659965,1736031034639,-500.0,9.999e-05,2]
[347659966,1736031034648,-500.0,9.999e-05,2]
[347659967,1736031034657,-511.1054309,9.999e-05,2]
[347659968,1736031034666,-500.0,9.999e-05,2]
[347659969,1736031034675,-500.0,9.999e-05,2]
[347659970,1736031034686,-500.0,9.999e-05,2]
[347659971,1736031034695,-500.0,9.999e-05,2]
[347659972,1736031034704,-500.0,9.999e-05,2]
[347659973,1736031034715,-500.0,9.999e-05,2]
[347659974,1736031034724,-500.0,9.999e-05,2]
[347659975,1736031034735,-500.0,9.999e-05,2]
[347659976,1736031034744,-500.0,9.999e-05,2]
[347659977,1736031034754,-500.0,9.999e-05,2]
[347659978,1736031034763,-606.07,9.999e-05,2]
[347659979,1736031034772,-511.39601329,9.999e-05,2]
[347659980,1736031034781,-500.0,9.999e-05,2]
[347659981,1736031034790,-500.0,9.999e-05,2]
[347659982,1736031034800,-377.75884917,9.999e-05,2]
[347659983,1736031034809,-500.0,9.999e-05,2]
[347659984,1736031034818,-500.0,9.999e-05,2]
[347659985,1736031034828,-500.0,9.999e-05,2]
[347659986,1736031034837,-500.0,9.999e-05,2]
[347659987,1736031034846,-500.0,9.999e-05,2]
[347659988,1736031034856,-500.0,9.999e-05,2]
[347659989,1736031034865,-500.0,9.999e-05,2]
[347659990,1736031034874,-500.0,9.999e-05,2]
[347659991,1736031034883,-572.02,9.999e-05,2]
[347659992,1736031034893,-500.0,9.999e-05,2]
[347659993,1736031034902,-590.05,9.999e-05,2]
[347659994,1736031034913,-500.0,9.999e-05,2]
[347659995,1736031034923,-500.0,9.999e-05,2]
[347659996,1736031034933,-321.44301265,9.999e-05,2]
[347659997,1736031034944,-500.0,9.999e-05,2]
[347659998,1736031034953,-500.0,9.999e-05,2]
[347659999,1736031034962,-500.0,9.999e-05,2]
[347660000,1736031034971,-500.0,9.999e-05,2]
[347660001,1736031034980,-598.6115559,9.999e-05,2]
[347660002,1736031034990,-204722.74892802,0.0001,2]
[347660003,1736031035192,-3259.93952186,0.0001,2]
[347660004,1736031035209,-4755.45072678,0.0001,2]
[347660005,1736031035221,-1132.87600634,0.0001,2]
[347660006,1736031035232,-1703.61103245,0.0001,2]
[347660007,1736031035244,-6085.49871909,0.0001,2]
[347660008,1736031035255,-342601.18922312,0.0001,2]
[347660009,1736031035270,-513.38219973,0.0001,2]
[347660010,1736031035280,-841.51999994,0.0001,2]
[347660011,1736031035291,-1643.91621459,0.0001,2]
[347660012,1736031035302,-10615.0,0.0001,2]
[347660013,1736031035314,-796.7,0.0001,2]
[347660014,1736031035324,-270652.32959084,0.0001,2]
[347660015,1736031035335,-12167.29808063,0.0001,2]
[347660016,1736031035346,-23445.33732052,0.0001,2]
[347660017,1736031035357,-15578.27457381,0.0001,2]
[347660021,1736031037695,-540.9,9.997e-05,2]
[347660022,1736031037705,-500.0,9.999e-05,2]
[347660023,1736031037715,-36842.00160604,0.0001,2]
[347660024,1736031037726,-4000.0,0.0001,2]
[347660025,1736031037883,-9485.6999563,0.0001,2]
[347660026,1736031037897,-9794.95265896,0.0001,2]
[347660027,1736031037909,-48475.0,0.0001,2]
[347660039,1736031039944,-293.79,9.999e-05,2]
[347660040,1736031039954,-11584.53070139,0.0001,2]
[347660041,1736031039965,-485.005,0.0001,2]
[347660042,1736031039982,-97033.56277955,0.0001,2]
[347660043,1736031039993,-6573.89833254,0.0001,2]
[347660044,1736031040004,-9172.36663819,0.0001,2]
[347660045,1736031040015,-15381.33123423,0.0001,2]
[347660046,1736031040025,-4680.98868615,0.0001,2]
[347660047,1736031040036,-3237925.99995297,0.0001,2]
[347660048,1736031040047,-6549.1309989,0.0001,2]
[347660049,1736031040064,-1281.7012019,0.0001,2]
[347660050,1736031040074,-698.190475,0.0001,2]
[347660051,1736031040089,-896.45329775,0.0001,2]
[347660054,1736031042773,-169.59,7.749e-05,2]
[347660056,1736031042783,-42754.1004437,0.0001,2]
[347660058,1736031042813,-413.04277844,0.0001,2]
[347660059,1736031042825,-675.60039227,0.0001,2]
[347660060,1736031042842,-363.98936271,0.0001,2]
[347660061,1736031042871,-14482.5,0.0001,2]
[347660062,1736031042907,-480.61174891,0.0001,2]
[347660063,1736031042939,-1140.60295104,0.0001,2]
[347660064,1736031042951,-1383.70979294,0.0001,2]
[347660065,1736031043075,-4804.84285329,0.0001,2]
[347660066,1736031043091,-125237.92878231,0.0001,2]
[347660067,1736031045769,-500.0,9.999e-05,2]
[347660068,1736031045779,-358.56482999,9.999e-05,2]
[347660069,1736031045790,-141.43517001,9.999e-05,2]
[347660070,1736031045799,-291.13518802,0.0001,2]
[347660071,1736031045810,-1102.15734889,0.0001,2]
[347660072,1736031045827,-1202.460015,0.0001,2]
[347660073,1736031045915,-1956.7953615,0.0001,2]
[347660074,1736031045927,-383201.22457495,0.0001,2]
[347660075,1736031045946,-34582.3064,0.0001,2]
[347660076,1736031045988,-731.0381,0.0001,2]
[347660077,1736031045999,-48102.99044409,0.0001,2]
[347660078,1736031046010,-7044.46401014,0.0001,2]
[347660079,1736031046073,-403.80567716,0.0001,2]
[347660080,1736031296891,10000.0,0.0002,120]
[347660082,1736031427850,10000.0,0.0002,120]
[347660084,1736031447834,10000.0,0.0002,120]
[347660085,1736031490645,10000.0,0.0002,120]
[347660086,1736031512856,10000.0,0.0002,120]
[347660087,1736032025223,-1649.72,8.219e-05,2]
[347660088,1736032208450,5050.0,0.00012,27]
[347660094,1736032231968,-500.0,8.766e-05,2]
[347660095,1736032231977,-1200.0,8.766e-05,2]
[347660096,1736032231987,-150.0,9e-05,2]
[347660097,1736032231998,-150.0,9e-05,2]
[347660098,1736032232007,-3488.61886519,9.121e-05,2]
[347660099,1736032232019,-497.65536239,9.121e-05,2]
[347660100,1736032232037,-1586.11079054,9.121e-05,2]
[347660101,1736032232147,-7210.21218495,9.121e-05,2]
[347660102,1736032232159,-2183.09359182,9.121e-05,2]
[347660103,1736032232191,-8934.30920511,9.121e-05,2]
[347660104,1736032232201,-551.55,9.167e-05,2]
[347660105,1736032232211,-1000.0,9.18e-05,2]
[347660106,1736032232220,-250.0,9.203e-05,2]
[347660107,1736032232230,-245.59,9.3e-05,2]
[347660108,1736032232240,-250.0,9.383e-05,2]
[347660109,1736032232250,-409.727,9.5e-05,2]
[347660110,1736032232259,-165.42,9.547e-05,2]
[347660111,1736032232268,-2685.0,9.606e-05,2]
[347660112,1736032232278,-6715.114,9.822e-05,2]
[347660113,1736032232289,-150.0,9.822e-05,2]
[347660114,1736032232299,-3893.0,9.822e-05,2]
[347660115,1736032232308,-500.0,9.862e-05,2]
[347660116,1736032232317,-6362.174,9.9e-05,2]
[347660117,1736032232327,-406.5707,9.9e-05,2]
[347660118,1736032232336,-1000.0,9.9e-05,2]
[347660119,1736032232346,-5000.0,9.9e-05,2]
[347660120,1736032232357,-596.831,9.9e-05,2]
[347660121,1736032232367,-14707.3696,9.9e-05,2]
[347660122,1736032232377,-153.12897295,9.973e-05,2]
[347660123,1736032232386,-507.51797623,9.973e-05,2]
[347660124,1736032232395,-500.0,9.973e-05,2]
[347660125,1736032232405,-153.85687107,9.973e-05,2]
[347660126,1736032232415,-2098.9985405,9.996e-05,2]
[347660127,1736032232426,-2595.20156411,9.999e-05,2]
[347660128,1736032232668,-1163.85039959,9.999e-05,2]
[347660129,1736032232682,-654.237,9.999e-05,2]
[347660130,1736032232692,-174.032,9.999e-05,2]
[347660132,1736032232702,-500.0,9.999e-05,2]
[347660135,1736032232714,-500.0,9.999e-05,2]
[347660137,1736032232723,-759.86,9.999e-05,2]
[347660139,1736032232733,-500.0,9.999e-05,2]
[347660141,1736032232742,-427.78,9.999e-05,2]
[347660143,1736032232751,-379.08,9.999e-05,2]
[347660145,1736032232760,-500.0,9.999e-05,2]
[347660147,1736032232770,-400.45550228,9.999e-05,2]
[347660149,1736032232779,-600.17847172,9.999e-05,2]
[347660151,1736032232788,-500.0,9.999e-05,2]
[347660152,1736032232797,-367.8,9.999e-05,2]
[347660154,1736032232806,-500.0,9.999e-05,2]
[347660155,1736032232815,-500.0,9.999e-05,2]
[347660156,1736032232824,-500.0,9.999e-05,2]
[347660157,1736032232833,-500.0,9.999e-05,2]
[347660158,1736032232845,-500.0,9.999e-05,2]
[347660159,1736032232854,-275.0867179,9.999e-05,2]
[347660160,1736032232864,-891.25,9.999e-05,2]
[347660161,1736032232873,-500.0,9.999e-05,2]
[347660162,1736032232883,-500.0,9.999e-05,2]
[347660163,1736032232894,-74.6927938,9.999e-05,2]
[347660164,1736032232932,-425.3072062,9.999e-05,2]
[347660165,1736032232943,-500.0,9.999e-05,2]
[347660166,1736032232952,-203.52,9.999e-05,2]
[347660167,1736032232962,-500.0,9.999e-05,2]
[347660168,1736032232971,-500.0,9.999e-05,2]
[347660169,1736032232980,-500.0,9.999e-05,2]
[347660170,1736032232990,-328.6456338,9.999e-05,2]
[347660171,1736032233007,-171.3543662,9.999e-05,2]
[347660172,1736032233017,-500.0,9.999e-05,2]
[347660173,1736032233026,-500.0,9.999e-05,2]
[347660174,1736032233035,-500.0,9.999e-05,2]
[347660175,1736032233045,-500.0,9.999e-05,2]
[347660176,1736032233054,-500.0,9.999e-05,2]
[347660177,1736032233063,-500.0,9.999e-05,2]
[347660178,1736032233073,-500.1,9.999e-05,2]
[347660179,1736032233082,-500.0,9.999e-05,2]
[347660180,1736032233092,-500.0,9.999e-05,2]
[347660181,1736032233101,-500.0,9.999e-05,2]
[347660182,1736032233110,-500.0,9.999e-05,2]
[347660183,1736032233120,-500.0,9.999e-05,2]
[347660184,1736032233129,-547.44,9.999e-05,2]
[347660185,1736032233139,-633.09,9.999e-05,2]
[347660186,1736032233149,-500.0,9.999e-05,2]
[347660187,1736032233159,-500.0,9.999e-05,2]
[347660188,1736032233168,-500.0,9.999e-05,2]
[347660189,1736032233178,-500.0,9.999e-05,2]
[347660190,1736032233187,-500.0,9.999e-05,2]
[347660191,1736032233197,-78.56552798,9.999e-05,2]
[347660193,1736032237879,-421.43447202,9.999e-05,2]
[347660194,1736032237888,-174.45,9.999e-05,2]
[347660195,1736032237897,-500.0,9.999e-05,2]
[347660196,1736032237907,-500.0,9.999e-05,2]
[347660197,1736032237916,-500.0,9.999e-05,2]
[347660198,1736032237925,-500.0,9.999e-05,2]
[347660199,1736032237934,-500.0,9.999e-05,2]
[347660200,1736032237943,-500.0,9.999e-05,2]
[347660201,1736032237952,-777.5,9.999e-05,2]
[347660202,1736032237961,-316.46757377,9.999e-05,2]
[347660203,1736032237974,-183.53242623,9.999e-05,2]
[347660204,1736032237984,-637.23,9.999e-05,2]
[347660205,1736032237994,-252.13757377,9.999e-05,2]
[347660206,1736032238006,-278.03607585,9.999e-05,2]
[347660207,1736032238016,-500.0,9.999e-05,2]
[347660208,1736032238027,-500.0,9.999e-05,2]
[347660209,1736032238037,-500.0,9.999e-05,2]
[347660210,1736032238047,-500.0,9.999e-05,2]
[347660211,1736032238056,-500.0,9.999e-05,2]
[347660212,1736032238066,-500.0,9.999e-05,2]
[347660213,1736032238076,-500.0,9.999e-05,2]
[347660214,1736032238086,-500.0,9.999e-05,2]
[347660215,1736032238095,-94.1119984,9.999e-05,2]
[347660216,1736032238113,-405.8880016,9.999e-05,2]
[347660217,1736032238122,-664.01,9.999e-05,2]
[347660218,1736032238133,-500.0,9.999e-05,2]
[347660219,1736032238142,-500.0,9.999e-05,2]
[347660220,1736032238152,-500.0,9.999e-05,2]
[347660221,1736032238163,-518.37,9.999e-05,2]
[347660222,1736032238173,-312.39,9.999e-05,2]
[347660223,1736032238183,-591.94,9.999e-05,2]
[347660224,1736032238192,-500.0,9.999e-05,2]
[347660225,1736032238201,-500.0,9.999e-05,2]
[347660226,1736032238211,-500.0,9.999e-05,2]
[347660227,1736032238220,-500.0,9.999e-05,2]
[347660228,1736032238229,-321.13453857,9.999e-05,2]
[347660229,1736032238238,-500.0,9.999e-05,2]
[347660230,1736032238248,-500.0,9.999e-05,2]
[347660231,1736032238257,-500.0,9.999e-05,2]
[347660232,1736032238266,-500.0,9.999e-05,2]
[347660233,1736032238275,-500.0,9.999e-05,2]
[347660234,1736032238285,-454.88,9.999e-05,2]
[347660235,1736032238295,-500.0,9.999e-05,2]
[347660236,1736032238304,-580.82,9.999e-05,2]
[347660237,1736032238313,-500.0,9.999e-05,2]
[347660238,1736032238323,-500.0,9.999e-05,2]
[347660239,1736032238332,-500.0,9.999e-05,2]
[347660240,1736032238342,-500.0,9.999e-05,2]
[347660241,1736032238351,-534.82,9.999e-05,2]
[347660242,1736032238361,-548.19,9.999e-05,2]
[347660243,1736032238370,-433.51,9.999e-05,2]
[347660244,1736032238380,-500.0,9.999e-05,2]
[347660245,1736032238389,-357.15890295,9.999e-05,2]
[347660246,1736032238398,-500.0,9.999e-05,2]
[347660247,1736032238407,-500.0,9.999e-05,2]
[347660248,1736032238417,-333.36988123,9.999e-05,2]
[347660250,1736032238426,-500.0,9.999e-05,2]
[347660252,1736032238435,-500.0,9.999e-05,2]
[347660254,1736032238444,-500.0,9.999e-05,2]
[347660255,1736032238453,-33.10084737,9.999e-05,2]
[347660258,1736032238472,-161.29242151,9.999e-05,2]
[347660260,1736032238481,-581.07257008,9.999e-05,2]
[347660262,1736032238490,-2973.42484841,0.0001,2]
[347660264,1736032238502,-1358.50341627,0.0001,2]
[347660266,1736032238513,-12037.45376007,0.0001,2]
[347660268,1736032238524,-337.83016865,0.0001,2]
[347660270,1736032238541,-716019.75031208,0.0001,2]
[347660272,1736032238553,-949685.91508238,0.0001,2]
[347660274,1736032238565,-17183.079,0.0001,2]
[347660276,1736032238577,-3049.8516,0.0001,2]
[347660285,1736032239977,-500.0,9.999e-05,2]
[347660286,1736032239987,-42.59004501,0.0001,2]
[347660287,1736032239998,-3593.47834983,0.0001,2]
[347660288,1736032240011,-1746.3324078,0.0001,2]
[347660289,1736032240023,-4980.16031994,0.0001,2]
[347660290,1736032240035,-11148.5019612,0.0001,2]
[347660291,1736032240046,-1034.24475126,0.0001,2]
[347660292,1736032240057,-732.23000003,0.0001,2]
[347660293,1736032240068,-3728.44,0.0001,2]
[347660294,1736032240080,-1101.98242668,0.0001,2]
[347660295,1736032240097,-76642.27246518,0.0001,2]
[347660296,1736032240118,-62180.81355393,0.0001,2]
[347660297,1736032240303,-917.24959536,0.0001,2]
[347660298,1736032240317,-475.8703,0.0001,2]
[347660299,1736032240328,-585.37581975,0.0001,2]
[347660300,1736032240346,-310.5,0.0001,2]
[347660301,1736032240359,-6024.76463846,0.0001,2]
[347660302,1736032240371,-2315.9462,0.0001,2]
[347660303,1736032240389,-456.875,0.0001,2]
[347660314,1736032243048,-271.66845999,0.0001,2]
[347660315,1736032243059,-925.62083757,0.0001,2]
[347660316,1736032243070,-29810.42719147,0.0001,2]
[347660317,1736032243083,-3483.63431089,0.0001,2]
[347660318,1736032243094,-2465.5210002,0.0001,2]
[347660319,1736032243105,-5862.20890592,0.0001,2]
[347660320,1736032243116,-18587.40094578,0.0001,2]
[347660321,1736032243128,-1403.42391454,0.0001,2]
[347660322,1736032243139,-1628.17427656,0.0001,2]
[347660323,1736032243149,-6332.2849218,0.0001,2]
[347660324,1736032243161,-7321.14233512,0.0001,2]
[347660325,1736032243174,-2938.37923822,0.0001,2]
[347660326,1736032243185,-482.20656864,0.0001,2]
[347660327,1736032243202,-495.23709628,0.0001,2]
[347660328,1736032243257,-2506.71483423,0.0001,2]
[347660329,1736032243268,-7017.51950224,0.0001,2]
[347660330,1736032243279,-764.55373,0.0001,2]
[347660331,1736032243291,-422.90000105,0.0001,2]
[347660332,1736032243303,-71312.85242056,0.0001,2]
[347660333,1736032243314,-7488.90594671,0.0001,2]
[347660446,1736032245864,-527.077714,0.0001,2]
[347660448,1736032245876,-878081.53073493,0.0001,2]
[347660451,1736032245901,-912.79653689,0.0001,2]
[347660456,1736032245942,-38049.07955746,0.0001,2]
[347660457,1736032245983,-77136.40949581,0.0001,2]
[347660458,1736032246019,-10634.5999995,0.0001,2]
[347660459,1736032246057,-2231.71493488,0.0001,2]
[347660460,1736032246096,-50650.0,0.0001,2]
[347660461,1736032246133,-15274.98900001,0.0001,2]
[347660462,1736032246171,-393.3118415,0.0001,2]
[347660463,1736032246183,-986.52863358,0.0001,2]
[347660477,1736032299327,1631.46,8.219e-05,2]
[347660479,1736033025821,160.0,8.219e-05,30]
[347660480,1736033026108,160.0,0.00010188,30]
[347660481,1736033109012,161.0,8.219e-05,30]
[347660482,1736033109306,161.0,0.00010975,30]
[347660483,1736033129012,164.45,7.289e-05,2]
[347660486,1736033289314,1623.1,8.219e-05,2]
[347660509,1736033432259,-500.0,8.766e-05,2]
[347660510,1736033432268,-1100.0,8.766e-05,2]
[347660511,1736033432277,-150.0,9e-05,2]
[347660512,1736033432287,-260.61103599,9e-05,2]
[347660513,1736033432296,-188.0573231,9e-05,2]
[347660514,1736033432306,-1000.0,9.225e-05,2]
[347660515,1736033432315,-943.6316685,9.225e-05,2]
[347660516,1736033432324,-300.0,9.243e-05,2]
[347660517,1736033432333,-3692.0214192,9.244e-05,2]
[347660518,1736033432344,-5994.9685808,9.244e-05,2]
[347660519,1736033432353,-412.72,9.249e-05,2]
[347660520,1736033432363,-250.0,9.346e-05,2]
[347660521,1736033432372,-188.05732308,9.5e-05,2]
[347660522,1736033432381,-399.269,9.5e-05,2]
[347660523,1736033432390,-163.74,9.606e-05,2]
[347660524,1736033432399,-250.0,9.683e-05,2]
[347660525,1736033432408,-1000.0,9.9e-05,2]
[347660526,1736033432418,-13985.47951362,9.9e-05,2]
[347660527,1736033432435,-479.87529719,9.9e-05,2]
[347660528,1736033432456,-4395.20626819,9.9e-05,2]
[347660529,1736033432466,-5000.0,9.9e-05,2]
[347660530,1736033432476,-500.0,9.973e-05,2]
[347660531,1736033432485,-500.0,9.973e-05,2]
[347660532,1736033432494,-604.2162716,9.996e-05,2]
[347660533,1736033432504,-3747.8,9.999e-05,2]
[347660534,1736033432514,-222.01,9.999e-05,2]
[347660535,1736033432524,-500.0,9.999e-05,2]
[347660536,1736033432533,-500.0,9.999e-05,2]
[347660537,1736033432544,-500.0,9.999e-05,2]
[347660538,1736033432553,-500.0,9.999e-05,2]
[347660539,1736033432562,-500.0,9.999e-05,2]
[347660540,1736033432573,-500.0,9.999e-05,2]
[347660541,1736033432585,-500.0,9.999e-05,2]
[347660542,1736033432594,-600.73,9.999e-05,2]
[347660543,1736033432603,-500.0,9.999e-05,2]
[347660544,1736033432612,-500.0,9.999e-05,2]
[347660545,1736033432621,-500.0,9.999e-05,2]
[347660546,1736033432630,-500.0,9.999e-05,2]
[347660547,1736033432640,-500.0,9.999e-05,2]
[347660548,1736033432649,-500.0,9.999e-05,2]
[347660549,1736033432663,-500.0,9.999e-05,2]
[347660550,1736033432673,-500.0,9.999e-05,2]
[347660551,1736033432684,-519.94,9.999e-05,2]
[347660552,1736033432695,-500.0,9.999e-05,2]
[347660553,1736033432705,-500.0,9.999e-05,2]
[347660554,1736033432714,-500.0,9.999e-05,2]
[347660555,1736033432724,-500.0,9.999e-05,2]
[347660556,1736033432733,-500.0,9.999e-05,2]
[347660557,1736033432745,-403.07363432,9.999e-05,2]
[347660558,1736033432755,-593.66,9.999e-05,2]
[347660559,1736033432764,-500.0,9.999e-05,2]
[347660560,1736033432774,-203.47,9.999e-05,2]
[347660561,1736033432784,-500.0,9.999e-05,2]
[347660562,1736033432795,-500.0,9.999e-05,2]
[347660563,1736033432805,-500.0,9.999e-05,2]
[347660565,1736033432814,-236.02189111,9.999e-05,2]
[347660567,1736033432824,-500.0,9.999e-05,2]
[347660569,1736033432833,-765.94,9.999e-05,2]
[347660571,1736033432842,-500.0,9.999e-05,2]
[347660572,1736033432851,-500.0,9.999e-05,2]
[347660573,1736033432863,-500.0,9.999e-05,2]
[347660574,1736033432874,-500.0,9.999e-05,2]
[347660575,1736033432885,-636.35,9.999e-05,2]
[347660576,1736033432894,-500.0,9.999e-05,2]
[347660577,1736033432906,-500.0,9.999e-05,2]
[347660578,1736033432916,-500.0,9.999e-05,2]
[347660579,1736033432927,-500.0,9.999e-05,2]
[347660580,1736033432938,-500.0,9.999e-05,2]
[347660581,1736033432947,-500.0,9.999e-05,2]
[347660582,1736033432956,-854.11,9.999e-05,2]
[347660583,1736033432965,-180.88,9.999e-05,2]
[347660584,1736033432974,-500.0,9.999e-05,2]
[347660585,1736033432983,-500.0,9.999e-05,2]
[347660586,1736033432993,-500.0,9.999e-05,2]
[347660587,1736033433004,-224.83,9.999e-05,2]
[347660588,1736033433013,-519.92,9.999e-05,2]
[347660589,1736033433022,-500.0,9.999e-05,2]
[347660590,1736033433031,-500.0,9.999e-05,2]
[347660591,1736033433041,-234.25,9.999e-05,2]
[347660592,1736033433050,-178.83975675,9.999e-05,2]
[347660593,1736033433065,-321.16024325,9.999e-05,2]
[347660594,1736033433074,-500.0,9.999e-05,2]
[347660595,1736033433083,-1000.0,9.999e-05,2]
[347660596,1736033433093,-350.52418652,9.999e-05,2]
[347660597,1736033433105,-377.67581348,9.999e-05,2]
[347660598,1736033433115,-500.0,9.999e-05,2]
[347660599,1736033433124,-506.14,9.999e-05,2]
[347660600,1736033433134,-500.0,9.999e-05,2]
[347660601,1736033433143,-192.96777163,9.999e-05,2]
[347660602,1736033433165,-455.70222837,9.999e-05,2]
[347660603,1736033433175,-500.0,9.999e-05,2]
[347660604,1736033433184,-500.0,9.999e-05,2]
[347660605,1736033433194,-525.35,9.999e-05,2]
[347660606,1736033433204,-500.0,9.999e-05,2]
[347660607,1736033433213,-500.0,9.999e-05,2]
[347660608,1736033433223,-500.0,9.999e-05,2]
[347660609,1736033433232,-500.0,9.999e-05,2]
[347660610,1736033433242,-435.4,9.999e-05,2]
[347660611,1736033433251,-500.0,9.999e-05,2]
[347660612,1736033433260,-500.0,9.999e-05,2]
[347660613,1736033433269,-188.05732308,9.999e-05,2]
[347660614,1736033433279,-292.30698525,9.999e-05,2]
[347660615,1736033433288,-500.0,9.999e-05,2]
[347660616,1736033433297,-500.00000001,9.999e-05,2]
[347660617,1736033433306,-39077.22041464,0.0001,2]
[347660618,1736033433317,-3224.28823665,0.0001,2]
[347660619,1736033433332,-1335.27392991,0.0001,2]
[347660620,1736033433347,-309.012,0.0001,2]
[347660621,1736033433363,-409.3475524,0.0001,2]
[347660622,1736033433393,-476.67512439,0.0001,2]
[347660623,1736033433404,-25916.576826,0.0001,2]
[347660627,1736033438095,-250.0,9.127e-05,2]
[347660628,1736033438105,-5809.89995,0.0001,2]
[347660629,1736033438224,-24879.84554,0.0001,2]
[347660630,1736033438235,-9703.8,0.0001,2]
[347660631,1736033438247,-18928.91,0.0001,2]
[347660632,1736033438258,-3693.22552404,0.0001,2]
[347660633,1736033438292,-160032.44699284,0.0001,2]
[347660729,1736033440244,-500.0,9.999e-05,2]
[347660730,1736033440253,-11938.08928184,0.0001,2]
[347660731,1736033440264,-3187.18179548,0.0001,2]
[347660732,1736033440287,-723.03820566,0.0001,2]
[347660733,1736033440299,-1830.29999996,0.0001,2]
[347660734,1736033440310,-284.25100019,0.0001,2]
[347660735,1736033440322,-3149.04758734,0.0001,2]
[347660736,1736033440334,-112633.81273987,0.0001,2]
[347660737,1736033440345,-6664.5727,0.0001,2]
[347660738,1736033440371,-1453.990171,0.0001,2]
[347660739,1736033440382,-2000.0,0.0001,2]
[347660740,1736033440394,-3454.06841754,0.0001,2]
[347660837,1736033443350,-480.0,9.999e-05,2]
[347660838,1736033443362,-254.03,9.999e-05,2]
[347660839,1736033443372,-58.61738382,9.999e-05,2]
[347660840,1736033443385,-542.76261618,9.999e-05,2]
[347660841,1736033443395,-427.84329842,0.0001,2]
[347660842,1736033443407,-585.06630394,0.0001,2]
[347660843,1736033443418,-717.8093996,0.0001,2]
[347660883,1736033446220,-479999.16046007,0.0001,2]
[347660884,1736033446234,-5094.5,0.0001,2]
[347660885,1736033446247,-5523.5,0.0001,2]
[347660886,1736033446257,-385184.41546954,0.0001,2]
[347660887,1736033446268,-39908.00416181,0.0001,2]
[347660888,1736033446279,-144936.99093873,0.0001,2]
[347660889,1736033446291,-60945.0,0.0001,2]
[347660890,1736033446302,-912947.35191358,0.0001,2]
[347660891,1736033446317,-339471.05656421,0.0001,2]
[347660948,1736033573787,18007.22333256,0.00012,24]
[347660951,1736033824508,6856.0,0.0002,120]
[347660954,1736034273420,1611.5,8.219e-05,2]
[347660963,1736034632347,-1000.0,8.766e-05,2]
[347660964,1736034632356,-250.0,9.06e-05,2]
[347660965,1736034632366,-572.68,9.161e-05,2]
[347660966,1736034632375,-1003.98,9.22e-05,2]
[347660967,1736034632384,-767.52469,9.244e-05,2]